Cogmind - Beta 11.1 @@@ ROGUE MODE // 2022.05.14 @ 14:58:19 Player: laserbat Result: Self-destructed Performance ------------- Evolutions (3) 1500 Regions Visited (4) 800 Robots Destroyed (0) 0 Value Destroyed (0) 0 Prototype IDs (0) 0 Alien Tech Used (0) 0 Bonus (834) 834 TOTAL SCORE: 3134 Bonus ------- Pacifist 834 Cogmind --------- Core Integrity 476/700 Matter 184/300 Energy 100/100 System Corruption 0% Temperature Cool (20) Movement Flying (40) Location -7/Factory Parts ------- > --- POWER (1) -------- (None) > --- PROPULSION (4) --- Flight Unit > --- UTILITY (6) ------ Machine Analyzer Advanced Visual Processing Unit Signal Interpreter > --- WEAPON (2) ------- (None) > --- INVENTORY (5) ---- Improved Ion Engine Improved Datajack Peak State ------------ > --- POWER ------------ Light Nuclear Core > --- PROPULSION ------- Flight Unit Flight Unit VTOL Module VTOL Module > --- UTILITY ---------- Machine Analyzer Advanced Visual Processing Unit Signal Interpreter Light Armor Plating > --- WEAPON ----------- (None) > --- INVENTORY -------- Light Armor Plating [Rating: 17] Favorites ----------- Power Improved Ion Engine Engine Improved Ion Engine Power Core Light Nuclear Core Propulsion VTOL Module Flight Unit VTOL Module Utility Machine Analyzer Processor Machine Analyzer Protection Light Armor Plating Weapon None Build | -11 -10 -9 -8 -7 ------- Run | Scr Mat Mat Mat Fac Slots Evolved 6 | . . 2 2 2 Power . | . . . . . Propulsion 2 | . . 2 . . Utility 4 | . . . 2 2 Weapon . | . . . . . Parts Attached 16 | . 3 1 8 4 Power 2 | . . . 1 1 Engine 1 | . . . . 1 Core 1 | . . . 1 . Reactor . | . . . . . Propulsion 9 | . 2 . 4 3 Treads . | . . . . . Leg . | . . . . . Wheel . | . . . . . Hover . | . . . . . Flight 9 | . 2 . 4 3 Utility 5 | . 1 1 3 . Device . | . . . . . Storage . | . . . . . Processor 3 | . . 1 2 . Hackware . | . . . . . Protection 2 | . 1 . 1 . Artifact . | . . . . . Weapon . | . . . . . Energy Gun . | . . . . . Energy Cannon . | . . . . . Ballistic Gun . | . . . . . Ballistic Cannon . | . . . . . Launcher . | . . . . . Special Weapon . | . . . . . Impact Weapon . | . . . . . Slashing Weapon . | . . . . . Piercing Weapon . | . . . . . Special Melee Weapon . | . . . . . Unidentified Prototypes . | . . . . . Parts Lost 8 | . . 1 4 3 Power 1 | . . . 1 . Propulsion 5 | . . 1 2 2 Utility 2 | . . . 1 1 Weapon . | . . . . . Highest Loss Streak 3 | . . 1 3 3 To Critical Strikes . | . . . . . Average Slot Usage (%) 47 | . 25 37 70 48 Engine 1 | . . . . 4 Core 1 | . . . 6 . Flight 21 | . 22 19 29 16 Processor 16 | . . 6 25 23 Protection 6 | . 2 11 9 4 Naked Turns 12 | . 12 . . . Heaviest Build 10 | . 3 3 8 10 Greatest Support 16 | 3 8 8 16 12 Greatest Overweight (x) . | . . . . . Average Overweight (x) . | . . . . . Largest Inventory Capacity 5 | 5 5 5 5 5 Average Capacity 5 | 5 5 5 5 5 Most Carried 5 | 4 5 5 4 3 Average Carried 2 | 2 2 5 1 1 Final Capacity 5 | 5 5 5 5 5 Final Carried 5 | . 5 5 4 2 Class Distribution -------------------- 72% | Sprinter 27% | Mutant Dominant Class ---------------- Sprinter | -10/Materials Mutant | -9/Materials Sprinter | -8/Materials Sprinter | -7/Factory Resources | -11 -10 -9 -8 -7 ----------- Run | Scr Mat Mat Mat Fac Matter Collected 200 | 200 . . . . Remotely . | . . . . . Salvage Created . | . . . . . Parts . | . . . . . Haulers Intercepted . | . . . . . Recyclers Shooed . | . . . . . Parts Field Recycled . | . . . . . Retrieved Matter . | . . . . . Parts Self-Destructed . | . . . . . Prevented . | . . . . . Kills | -11 -10 -9 -8 -7 ------- Run | Scr Mat Mat Mat Fac Combat Hostiles Destroyed . | . . . . . Classes Destroyed . | . . . . . Best Kill Streak . | . . . . . Combat Bots Only . | . . . . . Max Kills in Single Turn . | . . . . . Gunslinging . | . . . . . Exploded . | . . . . . Melee . | . . . . . Uniques/NPCs Destroyed . | . . . . . Combat | -11 -10 -9 -8 -7 -------- Run | Scr Mat Mat Mat Fac Damage Taken 863 | . 89 76 311 387 Core 453 | . 52 27 150 224 Absorbed by Shields . | . . . . . Core Remaining (%) 86 | 100 79 93 72 . Volleys Fired . | . . . . . Largest . | . . . . . Hottest . | . . . . . Shots Fired . | . . . . . Gun . | . . . . . Cannon . | . . . . . Launcher . | . . . . . Special . | . . . . . Kinetic . | . . . . . Thermal . | . . . . . Explosive . | . . . . . Electromagnetic . | . . . . . Robot Hit Streak . | . . . . . Robot Miss Streak . | . . . . . Penetration Max . | . . . . . Secondary Targets . | . . . . . Shots Hit Robots . | . . . . . Core Hits . | . . . . . Critical Kills . | . . . . . Critical Parts Destroyed . | . . . . . Critical Strikes . | . . . . . Melee Attacks . | . . . . . Impact . | . . . . . Slashing . | . . . . . Piercing . | . . . . . Sneak Attacks . | . . . . . Combat Hostiles . | . . . . . Follow-up Attacks . | . . . . . Damage Inflicted 5 | . . . 5 . Guns . | . . . . . Cannons . | . . . . . Explosions . | . . . . . Melee . | . . . . . Ramming 5 | . . . 5 . Kinetic . | . . . . . Thermal . | . . . . . Explosive . | . . . . . Electromagnetic . | . . . . . Impact . | . . . . . Slashing . | . . . . . Piercing . | . . . . . Highest Corruption . | . . . . . Average Corruption . | . . . . . Corruption Purged . | . . . . . Corruption Blocked . | . . . . . Overload Shots . | . . . . . Overflow Damage . | . . . . . Projectiles . | . . . . . Explosions . | . . . . . Melee . | . . . . . Knockbacks . | . . . . . Impact . | . . . . . Kinetic . | . . . . . Secondary . | . . . . . Self-Inflicted Damage 2 | . . . 2 . Shots . | . . . . . Rammed 1 | . . . 1 . Targets Rammed 1 | . . . 1 . Kicked . | . . . . . Crushed . | . . . . . Highest Temperature 25 | . 25 . 24 . Average Temperature 13 | . 13 . 13 . Received Heat Transfer 252 | . 66 12 117 57 Siege Activations . | . . . . . Robots Corrupted . | . . . . . Combat Hostiles . | . . . . . Parts Fried . | . . . . . Impact Corruptions . | . . . . . Robots Melted . | . . . . . Combat Hostiles . | . . . . . Parts Melted . | . . . . . Heat Transferred . | . . . . . Parts Sabotaged . | . . . . . Parts Stolen . | . . . . . Parts Stripped . | . . . . . Power Chain Reactions . | . . . . . Missiles Intercepted . | . . . . . Alert | -11 -10 -9 -8 -7 ------- Run | Scr Mat Mat Mat Fac Peak Influence 237 | . 45 98 237 237 Initial 102 | . . 18 37 102 Average 90 | . 17 65 99 134 Maximum Alert Level 1 | . . . 1 1 Low Security (%) 91 | 100 100 100 81 91 Level 1 8 | . . . 18 8 Level 2 . | . . . . . Level 3 . | . . . . . Level 4 . | . . . . . Level 5 . | . . . . . High Security . | . . . . . Max Security . | . . . . . Squads Dispatched 8 | . 2 1 3 2 Investigation 2 | . 1 . 1 . Extermination . | . . . . . Reinforcement 6 | . 1 1 2 2 Assault . | . . . . . Garrison . | . . . . . Intercept . | . . . . . Searches Triggered . | . . . . . Construction Impeded . | . . . . . Haulers Reinforced . | . . . . . Active Scanning Responses . | . . . . . Cargo Convoy Interrupts . | . . . . . Stealth | -11 -10 -9 -8 -7 --------- Run | Scr Mat Mat Mat Fac Distress Signals 1 | . . . . 1 Communications Jammed . | . . . . . Distress Signals . | . . . . . Times Spotted 53 | . 8 10 20 15 Peak Tracking Total 17 | . 7 8 17 10 Tactical Retreats 4 | . . . 2 2 Traps | -11 -10 -9 -8 -7 ------- Run | Scr Mat Mat Mat Fac Traps Triggered . | . . . . . Indirectly . | . . . . . Trap Hack Attempts . | . . . . . Triggered . | . . . . . Disarmed . | . . . . . Reprogrammed . | . . . . . Reused . | . . . . . Traps Extracted . | . . . . . Installed . | . . . . . Triggered . | . . . . . Machines | -11 -10 -9 -8 -7 ---------- Run | Scr Mat Mat Mat Fac Machines Disabled . | . . . . . Max in Single Turn . | . . . . . Machines Sabotaged . | . . . . . Garrisons Compromised . | . . . . . Overloaded Fab Kills . | . . . . . Hacking | -11 -10 -9 -8 -7 --------- Run | Scr Mat Mat Mat Fac Machines Accessed 3 | . 1 1 1 . Terminals 3 | . 1 1 1 . Fabricators . | . . . . . Repair Stations . | . . . . . Recycling Units . | . . . . . Scanalyzers . | . . . . . Garrison Access . | . . . . . Total Hacks 13 | . 3 5 5 . Successful 6 | . . 3 3 . Failed 7 | . 3 2 2 . Catastrophic 4 | . 1 2 1 . Database Lockouts . | . . . . . Manual 13 | . 3 5 5 . Terminals 13 | . 3 5 5 . Fabricators . | . . . . . Repair Stations . | . . . . . Recycling Units . | . . . . . Scanalyzers . | . . . . . Garrison Access . | . . . . . Terminal Hacks 4 | . . 2 2 . Level Access Points 2 | . . 1 1 . Terminal Index 2 | . . 1 1 . Fabricator Hacks . | . . . . . Repair Station Hacks . | . . . . . Recycling Unit Hacks . | . . . . . Scanalyzer . | . . . . . Garrison Access Hacks . | . . . . . Unauthorized Hacks 2 | . . 1 1 . Terminals 2 | . . 1 1 . Botnet 2 | . . 1 1 . Fabricators . | . . . . . Repair Stations . | . . . . . Recycling Units . | . . . . . Scanalyzers . | . . . . . Garrison Access . | . . . . . Data Cores Recovered . | . . . . . Used . | . . . . . Hacking Detections 3 | . 1 1 1 . Full Trace Events 3 | . 1 1 1 . Feedback Events . | . . . . . Feedback Blocked . | . . . . . Robot Schematics Acquired . | . . . . . Robots Built . | . . . . . Authchips . | . . . . . Time . | . . . . . Total Robot Build Rating . | . . . . . Part Schematics Acquired . | . . . . . Parts Built . | . . . . . Authchips . | . . . . . Time . | . . . . . Total Part Build Rating . | . . . . . Parts Repaired . | . . . . . Time . | . . . . . Parts Recycled . | . . . . . Recycled Matter . | . . . . . Retrieved Matter . | . . . . . Retrieved Components . | . . . . . Parts Scanalyzed . | . . . . . Part Schematics Acquired . | . . . . . Parts Damaged . | . . . . . Bothacking | -11 -10 -9 -8 -7 ------------ Run | Scr Mat Mat Mat Fac Used RIF Installer . | . . . . . Robots Hacked . | . . . . . Non-combat . | . . . . . Combat . | . . . . . Robot Hacks Applied . | . . . . . Relay Couplers Released . | . . . . . Fabnet Peak Effective % . | . . . . . Robots Rewired . | . . . . . Allies Hacked . | . . . . . Hacks Repelled . | . . . . . Allies | -11 -10 -9 -8 -7 -------- Run | Scr Mat Mat Mat Fac Total Allies . | . . . . . Largest Group . | . . . . . Highest-Rated Group . | . . . . . Highest-Rated Ally . | . . . . . Total Orders . | . . . . . Ally Attacks . | . . . . . Total Damage . | . . . . . Kills . | . . . . . Allies Corrupted . | . . . . . Allies Melted . | . . . . . Intel | -11 -10 -9 -8 -7 ------- Run | Scr Mat Mat Mat Fac Robot Analysis Total . | . . . . . Derelict Logs Recovered . | . . . . . Drone Launches . | . . . . . Drone Recoveries . | . . . . . Exploration | -11 -10 -9 -8 -7 ------------- Run | Scr Mat Mat Mat Fac Turns Passed 274 | 3 49 47 76 99 Spaces Moved 731 | 1 105 140 206 279 Core 25 | 1 23 . 1 . Treads . | . . . . . Legs . | . . . . . Wheels . | . . . . . Hover . | . . . . . Flight 706 | . 82 140 205 279 Fastest Speed 28 | 50 32 32 28 30 Average Speed 32 | 50 35 32 30 33 Slowest Speed 50 | 50 50 35 50 40 Overloaded Moves . | . . . . . Propulsion Burnouts . | . . . . . Robots Hopped 21 | . 2 11 5 3 Cave-ins Triggered . | . . . . . Exploration Rate (%) 16 | 2 21 16 34 11 Regions Visited 4 Branch Regions . Pre-discovered Areas . | . . . . . Known Exits Taken 2 | . . 1 1 . Unknown Exits Taken 2 | 1 1 . . . Scrap Searched . | . . . . . Spaces Dug . | . . . . . Terrain Destroyed . | . . . . . Melee . | . . . . . Projectile . | . . . . . AOE . | . . . . . Terrain Rammed . | . . . . . Walls Destroyed . | . . . . . Machines Disabled . | . . . . . Actions | -11 -10 -9 -8 -7 --------- Run | Scr Mat Mat Mat Fac Total 741 | 5 112 129 213 282 Wait . | . . . . . Move 688 | . 100 118 197 273 Hop 19 | . 2 10 4 3 Pick Up 8 | . 6 . 1 1 Fast Attach 7 | . 3 1 3 . Attach 9 | . . . 5 4 Detach 4 | . . . 3 1 Swap . | . . . . . Drop 6 | 5 1 . . . Fire . | . . . . . Melee . | . . . . . Ram . | . . . . . Kick . | . . . . . Crush . | . . . . . Escape Stasis . | . . . . . Rewire . | . . . . . Trap . | . . . . . Miscellaneous . | . . . . . Route ------- -11/Scrapyard -10/Materials -9/Materials (discovered 3 exits: *Mat x3) -8/Materials (discovered 3 exits: *Fac x3) -7/Factory History --------- Turn | Location | Event 1 | -11/Scrapyard | Released all parts (6) 4 | -11/Scrapyard | Discovered new exit (range 0) 4 | -11/Scrapyard | Entered Materials 48 | -10/Materials | Discovered new exit (range 16) 53 | -10/Materials | Entered another Materials area 53 | -9/Materials | Evolved 2 slots: Propulsion x2 64 | -9/Materials | Identified exit to Materials 100 | -9/Materials | Entered another Materials area 100 | -8/Materials | Evolved 2 slots: Utility x2 122 | -8/Materials | Identified exit to Factory 173 | -8/Materials | Lost 3 parts (2n1u) 176 | -8/Materials | Entered Factory 176 | -7/Factory | Evolved 2 slots: Utility x2 267 | -7/Factory | Lost 3 parts (2n1u) 275 | -7/Factory | Self-destructed Last Messages --------------- 00217_ Acquired Imp. Datajack. 00230_ >> Machine Analyzer network decryption results: 00230_ Terminal x2 00232_ Slug penetrates Wall. 00232_ ALERT: All DSF locations entering lockdown mode. 00232_ O-24 Administrator: "IFF HANDSHAKE FAILED. SECURING TERMINAL." 00232_ >> Machine Analyzer network decryption results: 00232_ Terminal x1 00233_ Lgt. Armor Plating destroyed. 00235_ VTOL Module destroyed. 00237_ ALERT: Hostiles spotted, dispatching reinforcements to Terminal F002. 00238_ Penetrated by Slug. 00239_ >> Machine Analyzer network decryption results: 00239_ Recycling Unit x1 00248_ K-01 Serf cleans the Assembly Bed. 00257_ >> Machine Analyzer network decryption results: 00257_ DSF Access x1 00268_ W-25 Informer sends out distress signal. 00275_ K-01 Serf pushes P-60 Hacker. Map ----- +----------------------------------------------------+ | ????????????????????????# """ +??????# """ | | ????????????????????????# #??????# """ | | ????????????????????????# """ #?"""??# """ | | ???????????????????????## """ #?"""??# | | ???????????????????????# """ #?"""??# | | ???????????????????????# #??????# | | ???????????????????????# #?"""??####### | | ???????????????????????# #?"""????????? | | ???????????????????????#^^ w [ #?"""????????? | | ???????????????????????# ########????????????? | | ??????????????????????## ##??????????????????? | | ??????????????????????# #?????## ##????????? | | ??????????????????????# ##### #????????? | | ??????????????????????# r ###??????? | | ??????????????????????# g] ??? | | ??????????????????????# ###??????? | | ??????????????????????# ##### #????????? | | ??????????????????????# #?????#+###????????? | | ??????????????????????### gg###??????????????????? | | ????????????????????????# #????????????????????? | | ????????????????????????# #????????????????????? | | ???????#######+#????????# #????????????????????? | | ??????? ####### #????????????????????? | | ?????? t u pk #####????????????????? | | ?????? +????????????????? | | ?????? @ #####????????????????? | | ?????? ###########????????????????????? | | ?????????#### ?????????????????????????????????? | | ????????????#????????????????????????????????????? | | ?????????????????????????????????????????????????? | | ?????????????????????????????????????????????????? | | ?????????????????????????????????????????????????? | | ?????????????????????????????????????????????????? | | ?????????????????????????????????????????????????? | | ?????????????????????????????????????????????????? | | ?????????????????????????????????????????????????? | | ?????????????????????????????????????????????????? | | ?????????????????????????????????????????????????? | | ?????????????????????????????????????????????????? | | ?????????????????????????????????????????????????? | | ?????????????????????????????????????????????????? | | ?????????????????????????????????????????????????? | | ?????????????????????????????????????????????????? | | ?????????????????????????????????????????????????? | | ?????????????????????????????????????????????????? | | | | | | | | | | | +----------------------------------------------------+ Best States ------------- Heat Dissipation 34 Energy Generation 14 Energy Capacity 265 Matter Stores 300 Matter Capacity 300 Sight Range 20 Terrain Scan Density 10 Armor Coverage 150 Evasion (%) 64 Item Schematics ----------------- None Robot Schematics ------------------ None Fabricated ------------ Nothing Alien Tech Used ----------------- None Achievements -------------- None Challenges ------------ None Game ------ Seed PotentialParticleHammer Manual? 0 Play Time 00:07:43 Cumulative 257.7 hours Start 2022.05.14 @ 14:52:15 End 2022.05.14 @ 14:58:19 Sessions 1 Manual Loads 0 Difficulty Rogue Special Mode None Game No. 398 Rogue 395 Adventurer 0 Explorer 3 Win Type - Total 9 Types 9/0/0/0/0/0/0/0/0 Lore% 71 Gallery% 75 Achievement% 63 Wizard Run 0 Options --------- ASCII 1 Keyboard 1 Movement Vi Keybinds 0 Fullscreen 1 Font 18/SmallcapsGlow Map View 76x50 Tactical HUD 1 Map Filters NONE Filters NONE Steam 1 RUN: c9fb68bf-b870-4274-a203-78f7a6d43417